bitfinex/quotes_ETHUSD_20250620
["timestamp","ask_amount","ask_price","bid_price","bid_amount"]
[1750461569304,10.0564,2396.5,2396.4,4.17292605]
[1750461570517,10.0,2396.5,2396.4,4.17292605]
[1750461574091,10.38509377,2396.5,2396.4,4.17292605]
[1750461574314,10.83093594,2396.5,2396.4,4.17292605]
[1750461575119,10.83105568,2396.5,2396.4,4.17292605]
[1750461575786,10.8310368,2396.5,2396.4,4.17292605]
[1750461575986,10.83103664,2396.5,2396.3,4.17301218]
[1750461576186,10.0603,2396.5,2396.4,4.17292605]
[1750461576409,17.81428835,2396.5,2396.4,4.17292605]
[1750461577082,17.81428334,2396.5,2396.4,4.17292605]
[1750461577522,17.81428334,2396.5,2396.3,4.17301295]
[1750461577820,17.0433,2396.5,2396.4,4.17292605]
[1750461578029,17.81428045,2396.5,2396.4,4.17292605]
[1750461579918,17.81427455,2396.5,2396.4,4.17292605]
[1750461580219,0.77096596,2396.5,2396.4,4.17292605]
[1750461580391,7.81326596,2396.5,2396.1,0.7645]
[1750461580591,0.77096596,2396.4,2396.3,4.17310019]
[1750461580792,17.09446184,2396.5,2396.4,4.17292605]
[1750461581019,17.81375218,2396.5,2396.4,4.17292605]
[1750461581521,17.81379069,2396.5,2396.4,4.17292605]
[1750461581729,17.75349069,2396.5,2396.4,4.17292605]
[1750461582030,1.867,2397.0,2396.9,4.17205557]
[1750461582214,9.8520976,2397.0,2396.9,4.17205557]
[1750461582416,19.46629083,2397.0,2396.9,4.17205557]
[1750461582618,19.85255226,2397.0,2396.9,4.17205557]
[1750461582926,19.85283558,2397.0,2396.9,4.17205557]
[1750461583630,19.85327061,2397.0,2396.9,4.17205557]
[1750461583807,19.91363808,2397.0,2396.9,4.17205557]
[1750461584126,10.0,2396.9,2396.8,4.17216474]
[1750461584333,11.00433808,2396.9,2396.8,4.17216474]
[1750461584492,12.03963303,2396.9,2396.5,4.1726182]
[1750461584829,0.0603,2396.7,2396.6,4.17257781]
[1750461584997,1.06463808,2396.7,2396.6,4.17257781]
[1750461585510,1.06518926,2396.7,2396.6,4.17257781]
[1750461585702,1.06519444,2396.7,2396.6,4.17257781]
[1750461586130,1.11735229,2396.7,2396.6,4.17257781]
[1750461586296,0.67869536,2396.7,2396.6,4.17257781]
[1750461586492,1.06517795,2396.7,2396.6,4.17257781]
[1750461586693,1.00487751,2396.7,2396.6,4.17257781]
[1750461587336,0.77298278,2396.7,2396.6,5.00710879]
[1750461587503,0.77299157,2396.7,2396.6,5.00710879]
[1750461587692,0.77299314,2396.7,2396.6,5.00710879]
[1750461587894,16.981,2396.8,2396.7,4.17240372]
[1750461588095,17.98589948,2396.8,2396.7,4.17240372]
[1750461588540,17.9858842,2396.8,2396.7,4.17240372]
[1750461589247,16.981,2396.8,2396.7,4.17240372]
[1750461589437,17.98585333,2396.8,2396.7,4.17240372]
[1750461589646,17.98585333,2396.8,2396.2,0.8283]
[1750461589952,10.0603,2396.5,2396.4,4.17292605]
[1750461590130,9.90707235,2396.5,2396.4,4.17292605]
[1750461590564,0.0603,2396.4,2396.3,4.17304007]
[1750461590735,0.0603,2396.4,2396.2,4.17322412]
[1750461590736,1.06507235,2396.4,2396.2,4.17322412]
[1750461590936,7.75191334,2396.3,2396.2,4.17322412]
[1750461591638,7.75187938,2396.3,2396.2,4.17322412]
[1750461592039,7.36539733,2396.3,2396.2,4.17322412]
[1750461592351,7.75179164,2396.3,2396.2,4.17322412]
[1750461593153,17.98358907,2396.3,2396.2,4.17322412]
[1750461593451,18.04388907,2396.3,2396.2,4.17322412]
[1750461593964,10.8186,2396.2,2395.7,0.791]
[1750461594261,7.86317279,2396.1,2395.9,4.1737969]
[1750461594557,0.77270186,2396.0,2395.9,4.1737969]
[1750461594854,7.09047093,2396.1,2395.9,4.1737969]
[1750461595021,0.77229525,2396.0,2395.9,4.1737969]
[1750461595221,0.77229525,2396.0,2395.9,5.1477737]
[1750461595875,0.77230236,2396.0,2395.9,5.0876737]
[1750461596023,0.77230236,2396.0,2395.9,4.1737969]
[1750461596533,0.77219467,2396.0,2395.9,4.1737969]
[1750461597728,0.77207019,2396.0,2395.9,4.1737969]
[1750461597928,0.77207017,2396.0,2395.9,4.1737969]
[1750461598860,0.77204349,2396.0,2395.9,4.1737969]
[1750461599059,0.77204566,2396.0,2395.9,4.1737969]
[1750461600464,21.13584196,2396.0,2395.5,0.7749]
[1750461600761,0.0603,2395.6,2395.4,4.17451524]
[1750461600962,6.977,2395.5,2395.4,4.17466811]
[1750461602879,6.977,2395.5,2395.4,5.00960333]
[1750461603082,6.977,2395.5,2395.4,5.85110333]
[1750461605281,1.863,2396.0,2395.6,4.17431958]
[1750461605594,16.977,2395.9,2395.8,5.01547111]
[1750461606203,17.3628072,2395.9,2395.8,5.01547111]
[1750461606981,17.36178547,2395.9,2395.8,4.95487111]
[1750461607180,17.74656316,2395.9,2395.8,4.95487111]
[1750461607383,17.36179839,2395.9,2395.8,4.17397111]
[1750461607582,17.74659922,2395.9,2395.8,4.17397111]
[1750461607945,17.74659922,2395.9,2395.7,4.17399283]
[1750461608165,0.44649839,2395.8,2395.7,4.17399283]
[1750461608500,0.0617,2395.8,2395.7,4.17399283]
[1750461608707,0.44649397,2395.8,2395.7,4.17399283]
[1750461608891,0.38479397,2395.8,2395.7,4.17399283]
[1750461609093,0.38479397,2395.8,2395.7,5.00882102]
[1750461609293,0.38479397,2395.8,2395.7,5.88002102]
[1750461610076,16.977,2395.9,2395.8,4.17397111]
[1750461610309,17.36186766,2395.9,2395.8,4.17397111]
[1750461610478,17.36184205,2395.9,2395.8,4.17397111]
[1750461611098,17.36184019,2395.9,2395.8,4.17397111]
[1750461611300,17.36185217,2395.9,2395.8,4.17397111]
[1750461611699,17.74674039,2395.9,2395.8,4.17397111]
[1750461613008,17.36185217,2395.9,2395.8,4.17397111]
[1750461613180,17.74676832,2395.9,2395.8,4.17397111]
[1750461613381,17.7469793,2395.9,2395.8,4.17397111]
[1750461613712,17.74719657,2395.9,2395.8,4.17397111]
[1750461614209,17.3621446,2395.9,2395.8,4.17397111]
[1750461614404,17.74728726,2395.9,2395.8,4.17397111]
[1750461614605,17.74728927,2395.9,2395.8,4.17397111]
[1750461614806,17.74728629,2395.9,2395.8,4.17397111]
[1750461614998,13.74727784,2395.9,2395.8,4.17397111]
[1750461615978,13.74760495,2395.9,2395.8,4.17397111]
[1750461616205,13.36230179,2395.9,2395.8,5.0087675]
[1750461616410,13.74764641,2395.9,2395.8,5.0087675]
[1750461616577,13.74769003,2395.9,2395.8,5.0087675]
[1750461616774,13.7476959,2395.9,2395.8,5.0087675]
[1750461617314,13.74769949,2395.9,2395.8,5.0087675]
[1750461617478,13.74796306,2395.9,2395.8,5.0087675]
[1750461617680,3.74796449,2395.9,2395.8,5.0693675]
[1750461617882,13.74796449,2395.9,2395.8,5.8484675]
[1750461618078,13.74796449,2395.9,2395.8,5.7878675]
[1750461618415,13.74796544,2395.9,2395.8,5.7878675]
[1750461618816,13.74820482,2395.9,2395.8,4.17397111]
[1750461619884,13.74821488,2395.9,2395.8,4.17397111]
[1750461620295,13.74833119,2395.9,2395.8,4.17397111]
[1750461620497,13.74844672,2395.9,2395.8,4.17397111]
[1750461621187,13.74847372,2395.9,2395.8,4.17397111]
[1750461621487,13.81017372,2395.9,2395.8,4.17397111]
[1750461621689,13.81017139,2395.9,2395.8,4.17397111]
[1750461621889,13.81018749,2395.9,2395.8,4.17397111]
[1750461622397,13.81043336,2395.9,2395.8,4.17397111]
[1750461622707,13.74872768,2395.9,2395.8,4.17397111]
[1750461623590,13.74885298,2395.9,2395.8,4.17397111]
[1750461623999,13.36286162,2395.9,2395.8,4.17397111]
[1750461624206,13.74899886,2395.9,2395.8,4.17397111]
[1750461624727,13.74901661,2395.9,2395.8,4.17397111]
[1750461624893,13.36300831,2395.9,2395.8,4.17397111]
[1750461625093,13.74902122,2395.9,2395.8,4.17397111]
[1750461625294,13.36300831,2395.9,2395.8,4.17397111]
[1750461625508,13.74902156,2395.9,2395.8,4.17397111]
[1750461626227,13.74902964,2395.9,2395.8,4.17397111]
[1750461626424,13.74904901,2395.9,2395.8,4.17397111]
[1750461626626,13.74906857,2395.9,2395.8,4.17397111]
[1750461627500,13.74908221,2395.9,2395.8,4.17397111]
[1750461628530,10.0,2395.8,2395.7,4.17399283]
[1750461628730,10.77208221,2395.8,2395.7,4.17399283]
[1750461629323,10.38604802,2395.8,2395.7,4.17399283]
[1750461629530,10.77213764,2395.8,2395.7,4.17399283]
[1750461630030,10.77213876,2395.8,2395.7,4.17399283]
[1750461630431,10.77221203,2395.8,2395.7,4.17399283]
[1750461631145,10.7722214,2395.8,2395.7,4.17399283]
[1750461631305,10.38611123,2395.8,2395.7,4.17399283]
[1750461631512,10.77222263,2395.8,2395.7,4.17399283]
[1750461632232,11.56412263,2395.8,2395.6,4.17415152]
[1750461632531,10.057,2395.9,2395.8,4.17397111]
[1750461632732,17.79953149,2395.9,2395.8,4.17397111]
[1750461633105,17.4132887,2395.9,2395.8,4.17397111]
[1750461633322,18.03138036,2395.9,2395.8,4.17397111]
[1750461633539,8.03143213,2395.9,2395.8,4.17397111]
[1750461633746,7.027,2395.9,2395.8,4.17397111]
[1750461633948,8.08366047,2395.9,2395.8,4.17397111]
[1750461634154,7.79968299,2395.9,2395.8,4.17397111]
[1750461634353,8.08372935,2395.9,2395.8,4.17397111]
[1750461634558,8.03165902,2395.9,2395.8,4.17397111]
[1750461634759,8.08383459,2395.9,2395.8,4.17397111]
[1750461634945,7.8519638,2395.9,2395.8,4.17397111]
[1750461635146,8.08383389,2395.9,2395.8,4.17397111]
[1750461635321,8.03186714,2395.9,2395.8,4.17397111]
[1750461635659,8.08420922,2395.9,2395.8,4.17397111]
[1750461635827,8.03203283,2395.9,2395.8,4.17397111]
[1750461636027,17.69759397,2395.9,2395.8,4.17397111]
[1750461636355,18.03219321,2395.9,2395.8,4.17397111]
[1750461636560,18.03219309,2395.9,2395.8,4.17397111]
[1750461636934,10.057,2395.8,2395.2,0.8333]
[1750461637126,10.057,2395.8,2395.2,4.17492324]
[1750461637127,10.7919,2395.4,2395.2,4.17492324]
[1750461637328,19.94238014,2395.3,2395.2,4.17492324]
[1750461637535,19.89019309,2395.3,2395.2,4.17492324]
[1750461638060,19.65822565,2395.3,2395.2,4.17492324]
[1750461638235,19.59935676,2395.3,2395.2,5.07091859]
[1750461638440,19.59935676,2395.3,2395.2,5.84321859]
[1750461638653,19.59850745,2395.3,2395.2,5.00822324]
[1750461638852,19.59847072,2395.3,2395.2,5.00822324]
[1750461639171,19.59844,2395.3,2395.2,5.00822324]
[1750461639534,19.59843711,2395.3,2395.2,5.00822324]
[1750461639966,19.21272,2395.3,2395.2,5.00822324]
[1750461640251,19.59839998,2395.3,2395.2,5.00822324]
[1750461640446,19.59839998,2395.3,2395.2,4.17492324]
[1750461640869,19.59839998,2395.3,2395.0,0.8161]
[1750461641175,0.77139998,2395.2,2395.1,4.17503604]
[1750461641862,18.827,2395.3,2395.2,4.1750167]
[1750461642056,19.59782481,2395.3,2395.2,4.1750167]
[1750461642671,19.59782481,2395.3,2395.1,4.17512981]
[1750461642855,0.77082418,2395.2,2395.1,4.17512981]
[1750461643443,0.38541181,2395.2,2395.1,4.17512981]
[1750461643675,0.77066381,2395.2,2395.1,4.17512981]
[1750461644778,0.38541181,2395.2,2395.1,4.17512981]
[1750461645602,18.884,2395.3,2395.2,4.1750167]
[1750461645900,17.3532481,2395.3,2395.2,4.2360167]
[1750461647067,7.3532481,2395.3,2395.2,4.2360167]
[1750461647955,7.3532481,2395.3,2395.2,4.1750167]
[1750461648360,7.35326813,2395.3,2395.2,4.1750167]
[1750461648692,7.35326813,2395.3,2395.2,5.24430681]
[1750461649589,7.35330924,2395.3,2395.2,5.24430681]
[1750461650596,7.35330246,2395.3,2395.2,5.24430681]
[1750461651264,7.35335032,2395.3,2395.2,5.24430681]
[1750461652192,7.35335663,2395.3,2395.2,5.24430681]
[1750461653194,7.35340986,2395.3,2395.2,5.24430681]
[1750461653397,7.35340983,2395.3,2395.2,5.24430681]
[1750461655203,7.35345193,2395.3,2395.2,5.24430681]
[1750461656102,7.35352264,2395.3,2395.2,5.24430681]
[1750461656304,1.854,2395.6,2395.5,4.17449384]
[1750461656493,19.20352124,2395.6,2395.5,4.17449384]
[1750461657603,18.818,2395.6,2395.5,4.17449384]
[1750461657901,19.20350802,2395.6,2395.5,4.17449384]
[1750461658697,0.38550802,2395.6,2395.5,4.17449384]
[1750461658898,1.854,2396.7,2396.5,4.17275192]
[1750461659099,1.854,2396.7,2396.6,4.17257781]
[1750461659298,0.057,2396.6,2396.2,0.7991]
[1750461659499,0.44271982,2396.5,2396.4,4.17292605]
[1750461660111,0.44271982,2396.5,2395.8,4.17397111]
[1750461660112,0.057,2396.3,2395.8,4.17397111]
[1750461660291,7.34671982,2396.2,2396.1,4.17344852]
[1750461660487,7.40371982,2396.2,2396.1,4.17344852]
[1750461661407,7.018,2396.2,2396.1,4.17344852]
[1750461661714,7.40311151,2396.2,2396.1,4.17344852]
[1750461662525,7.40310517,2396.2,2396.1,4.17344852]
[1750461663614,7.402978,2396.2,2396.1,4.17344852]
[1750461663822,7.40297801,2396.2,2396.1,4.17344852]
[1750461664399,7.40298151,2396.2,2396.1,4.17344852]
[1750461664790,7.40281254,2396.2,2396.1,4.17344852]
[1750461665086,8.67030978,2396.2,2396.1,4.17344852]
[1750461665304,18.67030978,2396.2,2395.9,4.17368455]
[1750461665504,0.0598,2396.0,2395.9,4.17368455]
[1750461666086,0.7737,2397.0,2396.3,0.7991]
[1750461666286,0.82950814,2396.9,2396.8,4.17220516]
[1750461666492,17.78850814,2396.9,2396.8,4.17220516]
[1750461667105,17.78761523,2396.9,2396.8,4.17220516]
[1750461667310,10.76881943,2396.9,2396.8,4.17220516]
[1750461667632,16.958,2396.9,2396.8,4.17220516]
[1750461667790,2.6164,2397.2,2396.8,4.17220516]
[1750461667791,1.9138,2397.2,2397.1,4.17170747]
[1750461667997,9.58083506,2397.2,2397.1,4.17170747]
[1750461668538,19.58085518,2397.2,2397.1,4.17170747]
[1750461668753,0.76885518,2397.2,2397.1,5.00606415]
[1750461668951,6.958,2397.4,2397.1,0.83435668]
[1750461669155,7.0178,2397.3,2397.2,4.17153345]
[1750461669646,0.7624,2397.5,2397.4,4.17118545]
[1750461669830,16.957,2397.5,2397.4,4.17118545]
[1750461670035,7.88274867,2397.9,2396.5,6.0267254]
[1750461670036,1.0402253,2398.3,2397.5,0.7669]
[1750461670233,0.82752295,2398.2,2397.5,4.93779376]
[1750461670418,7.39300084,2398.1,2398.0,4.17014178]
[1750461670612,6.957,2398.1,2398.0,4.17014178]
[1750461671013,0.0598,2397.9,2397.5,1.26650938]
[1750461671220,6.957,2397.8,2397.7,4.17066355]
[1750461672143,7.0168,2397.8,2397.7,4.17066355]
[1750461672535,6.957,2397.8,2397.7,4.17066355]
[1750461672723,11.853,2398.1,2397.8,4.17034737]
[1750461672921,0.0598,2397.9,2397.8,4.17034737]
[1750461673845,0.0598,2397.8,2397.7,4.17059449]
[1750461674044,0.11193292,2397.8,2397.7,4.17059449]
[1750461674551,2.7031,2398.1,2398.0,4.17014178]
[1750461674851,9.6581,2398.1,2398.0,4.17014178]
[1750461676322,9.5983,2398.1,2398.0,4.17014178]
[1750461676522,9.6581,2398.1,2398.0,4.17014178]
[1750461676756,10.2180253,2398.3,2398.1,4.16992889]
[1750461676961,17.0138,2398.2,2398.1,4.16992889]
[1750461677552,0.0598,2398.1,2398.0,4.17007849]
[1750461677862,0.11192754,2398.1,2398.0,4.17007849]
[1750461678030,0.11192754,2398.1,2397.9,4.17024704]
[1750461678230,16.953,2398.0,2397.9,4.17024704]
[1750461679068,10.0,2398.0,2397.9,4.17024704]
[1750461679273,16.952,2398.0,2397.9,4.17024704]
[1750461680058,17.0118,2398.0,2397.9,4.17024704]
[1750461681541,16.952,2398.0,2397.9,4.17024704]
[1750461683558,6.952,2398.0,2397.9,4.17024704]
[1750461684471,6.952,2398.0,2397.8,4.17046867]
[1750461684472,7.8106,2398.0,2397.8,4.1704028]
[1750461684782,7.8106,2398.0,2397.4,0.8158]
[1750461684783,0.0598,2397.8,2397.4,0.8158]
[1750461684990,7.0108,2397.8,2397.7,4.17066355]
[1750461688757,6.951,2397.8,2397.7,4.17066355]
[1750461689655,0.0598,2397.7,2397.3,0.7752]
[1750461689948,10.11193514,2397.7,2397.6,4.1708375]
[1750461690172,11.68711448,2397.7,2397.5,4.17098843]
[1750461690374,0.49619251,2397.6,2397.5,4.17098843]
[1750461690568,0.49616812,2397.6,2397.5,4.17098843]
[1750461690960,1.25406812,2397.6,2397.5,4.17098843]
[1750461691279,1.20192938,2397.6,2397.5,4.17098843]
[1750461691474,0.43650224,2397.6,2397.5,4.17098843]
[1750461691680,0.38436345,2397.6,2397.5,4.17098843]
[1750461691880,0.0521371,2397.7,2397.6,4.1708375]
[1750461692092,0.43648945,2397.7,2397.6,4.1708375]
[1750461692295,0.8208418,2397.7,2397.6,4.1708375]
[1750461692494,10.8208418,2397.7,2397.6,4.1708375]
[1750461692698,10.7687047,2397.7,2397.6,4.1708375]
[1750461693055,10.7687183,2397.7,2397.6,4.1708375]
[1750461693594,10.76871809,2397.7,2397.6,4.1708375]
[1750461693810,10.82664676,2397.7,2397.6,4.1708375]
[1750461694109,10.76894676,2397.7,2397.6,4.1708375]
[1750461694393,10.7689482,2397.7,2397.6,4.1708375]
[1750461694557,10.7697405,2397.7,2397.6,4.1708375]
[1750461695374,10.77053211,2397.7,2397.6,4.1708375]
[1750461695896,10.77053144,2397.7,2397.6,4.1708375]
[1750461696193,10.38526573,2397.7,2397.6,4.1708375]
[1750461696364,10.77060633,2397.7,2397.6,4.1708375]
[1750461696765,11.0022649,2397.7,2397.6,4.1708375]
[1750461696993,10.38526573,2397.7,2397.6,4.1708375]
[1750461697197,11.00385201,2397.7,2397.6,4.1708375]
[1750461697773,11.00384856,2397.7,2397.6,4.1708375]
[1750461697979,11.00384188,2397.7,2397.6,4.1708375]
[1750461698179,11.0038438,2397.7,2397.6,4.1708375]
[1750461698375,11.00384188,2397.7,2397.6,4.1708375]
[1750461698769,11.00386486,2397.7,2397.6,4.1708375]
[1750461699169,11.00437651,2397.7,2397.6,4.1708375]
[1750461699485,11.00450809,2397.7,2397.6,4.1708375]
[1750461700204,11.00448925,2397.7,2397.6,4.1708375]
[1750461700382,11.00447364,2397.7,2397.6,4.1708375]
[1750461700583,11.00446006,2397.7,2397.6,4.1708375]
[1750461701102,11.00444874,2397.7,2397.6,4.1708375]
[1750461701717,11.00449941,2397.7,2397.6,4.1708375]
[1750461702084,10.61815345,2397.7,2397.6,4.1708375]
[1750461702274,11.00460634,2397.7,2397.6,4.1708375]
[1750461702788,11.00467082,2397.7,2397.6,4.1708375]
[1750461703098,10.61832491,2397.7,2397.6,4.1708375]
[1750461703304,11.00477832,2397.7,2397.6,4.1708375]
[1750461703499,11.00476708,2397.7,2397.6,4.1708375]
[1750461703692,11.00475211,2397.7,2397.6,4.1708375]
[1750461704000,10.67601367,2397.7,2397.6,4.1708375]
[1750461704199,11.0624404,2397.7,2397.6,4.1708375]
[1750461704371,11.0047388,2397.7,2397.6,4.1708375]
[1750461704572,11.00474718,2397.7,2397.6,4.1708375]
[1750461705214,11.00475125,2397.7,2397.6,4.1708375]
[1750461705417,11.06245125,2397.7,2397.6,4.1708375]
[1750461705724,11.06246177,2397.7,2397.6,4.1708375]
[1750461706079,11.06246711,2397.7,2397.6,4.1708375]
[1750461706390,11.00479082,2397.7,2397.6,4.1708375]
[1750461706593,11.00482491,2397.7,2397.6,4.1708375]
[1750461706911,11.00483236,2397.7,2397.6,4.1708375]
[1750461707074,11.00483222,2397.7,2397.6,4.1708375]
[1750461707474,10.67605024,2397.7,2397.6,4.1708375]
[1750461707803,11.06251906,2397.7,2397.6,4.1708375]
[1750461708206,0.0577,2397.6,2397.4,4.17108871]
[1750461708505,17.38917002,2397.5,2397.4,4.17108871]
[1750461708723,17.77563158,2397.5,2397.4,4.17108871]
[1750461708925,18.0076024,2397.5,2397.4,4.17108871]
[1750461709125,17.62113598,2397.5,2397.4,4.17108871]
[1750461709326,18.00765382,2397.5,2397.4,4.17108871]
[1750461709506,18.00765482,2397.5,2397.4,4.17108871]
[1750461710024,18.00765482,2397.5,2397.0,4.22903215]
[1750461710025,10.0,2397.4,2397.0,4.17184772]
[1750461710189,10.0,2397.2,2397.0,4.17184772]
[1750461710394,7.82783472,2397.1,2397.0,4.17184772]
[1750461711617,7.77013472,2397.1,2397.0,4.17184772]
[1750461711898,7.3315107,2397.1,2397.0,5.05774772]
[1750461712111,7.3315107,2397.1,2397.0,5.98072532]
[1750461712926,7.3315107,2397.1,2397.0,5.92342532]
[1750461713128,6.945,2397.1,2397.0,5.98072532]
[1750461713308,1.844,2397.3,2397.2,4.17153345]
[1750461713509,19.17446585,2397.3,2397.2,5.66122735]
[1750461713716,19.17446522,2397.3,2397.2,5.66122735]
[1750461714222,19.17445604,2397.3,2397.2,5.60392735]
[1750461714416,10.38645604,2397.3,2397.2,5.60392735]
[1750461714642,10.38645604,2397.3,2397.2,5.66122735]
[1750461715045,10.0,2397.3,2397.2,5.66122735]
[1750461715339,10.3865093,2397.3,2397.2,5.66122735]
[1750461715848,10.3865093,2397.3,2397.2,5.60392735]
[1750461716149,10.38650989,2397.3,2397.2,5.60392735]
[1750461717246,10.38650989,2397.3,2397.2,5.66122735]
[1750461717915,0.38650989,2397.3,2397.2,5.66122735]
[1750461718525,0.38650989,2397.3,2397.2,5.6821597]
[1750461718746,0.38650989,2397.3,2397.2,6.41412735]
[1750461718927,10.0,2397.4,2397.3,4.17135944]
[1750461719281,10.38665496,2397.4,2397.3,5.69864614]
[1750461719575,0.38665496,2397.4,2397.3,5.69864614]
[1750461719876,6.943,2397.6,2397.5,4.17101147]
[1750461721557,0.10983741,2397.8,2397.7,4.17066355]
[1750461721758,17.2316656,2397.8,2397.7,4.17066355]
[1750461721960,16.9997,2397.8,2397.7,4.17066355]
[1750461722291,17.23163768,2397.8,2397.7,4.17066355]
[1750461723098,17.61822147,2397.8,2397.7,4.17066355]
[1750461723391,17.77285835,2397.8,2397.7,4.17066355]
[1750461724058,17.77283492,2397.8,2397.7,4.17066355]
[1750461724406,10.83083492,2397.8,2397.7,4.17066355]
[1750461724690,17.77183492,2397.8,2397.7,4.17066355]
[1750461725087,17.98969099,2397.8,2397.7,4.17066355]
[1750461725690,17.60328878,2397.8,2397.7,4.17066355]
[1750461725974,17.99002299,2397.8,2397.7,4.17066355]
[1750461726963,7.93132299,2397.8,2397.7,4.17066355]
[1750461727368,0.77346692,2397.8,2397.7,5.09385082]
[1750461727537,0.38673271,2397.8,2397.7,5.15135082]
[1750461727739,6.94,2397.9,2397.8,4.17048961]
[1750461727964,7.71349446,2397.9,2397.8,4.22798961]
[1750461728165,7.32675,2397.9,2397.8,4.22798961]
[1750461728376,7.32675,2397.9,2397.8,5.66054457]
[1750461728572,0.38675,2397.9,2397.8,5.66054457]
[1750461728801,2.1234253,2398.3,2398.2,4.16979401]
[1750461728802,2.17555171,2398.3,2398.2,4.16979401]
[1750461729107,9.77552912,2398.3,2398.2,4.16979401]
[1750461729308,9.38877721,2398.3,2398.2,5.08705766]
[1750461729441,0.2180253,2398.3,2398.2,5.97745766]
[1750461729642,0.2180253,2398.3,2398.2,5.99834755]
[1750461730140,0.2180253,2398.3,2398.2,5.97745766]
[1750461730655,0.2180253,2398.3,2398.2,5.99833926]
[1750461732877,0.2180253,2398.3,2398.2,5.97745766]
[1750461733373,0.2180253,2398.3,2398.2,12.91445766]
[1750461733580,0.2180253,2398.3,2398.2,20.58286253]
[1750461735080,0.2180253,2398.3,2398.2,13.64586253]
[1750461735260,0.2180253,2398.3,2398.2,20.58286253]
[1750461736648,0.2180253,2398.3,2398.2,13.64586253]
[1750461736851,0.2180253,2398.3,2398.2,20.58086253]
[1750461741553,0.2180253,2398.3,2398.2,5.91995766]
[1750461745557,0.2180253,2398.3,2398.2,5.97745766]
[1750461754170,0.2180253,2398.3,2398.2,5.91995766]
[1750461754376,0.2180253,2398.3,2398.2,5.97815766]
[1750461754573,0.2180253,2398.3,2398.2,20.59644346]
[1750461754771,0.0604,2399.1,2399.0,4.1684035]
[1750461755047,0.7832,2399.2,2399.1,4.16822975]
[1750461755203,1.16997166,2399.2,2399.1,4.16822975]
[1750461755400,1.17038461,2399.2,2399.1,4.16822975]
[1750461755588,2.6816,2399.4,2399.3,4.16788229]
[1750461755786,13.45600187,2399.4,2399.3,4.16788229]
[1750461756019,1.23081332,2399.4,2399.3,4.16788229]
[1750461756172,1.23081825,2399.4,2399.3,4.16788229]
[1750461756372,0.44747758,2399.4,2399.3,4.16788229]
[1750461756617,0.44769192,2399.4,2399.3,4.16788229]
[1750461756920,6.928,2399.9,2399.3,4.16788229]
[1750461756921,0.0604,2400.1,2400.0,4.16656116]
[1750461757120,11.86512267,2400.1,2400.0,4.16656116]
[1750461757407,1.86618293,2400.1,2400.0,4.16656116]
[1750461757587,0.0604,2400.0,2399.9,4.16675049]
[1750461757783,1.86618293,2400.0,2399.1,1.838]
[1750461757984,0.0604,2399.6,2398.9,0.8192]
[1750461758209,0.0604,2399.6,2399.3,4.16771047]
[1750461758210,0.8573,2399.4,2399.3,4.16771047]
[1750461758510,1.24534391,2399.4,2399.3,4.16771047]
[1750461759109,1.63385593,2399.4,2399.3,4.16771047]
[1750461759317,1.24534391,2399.4,2399.3,4.16771047]
[1750461759485,0.38804391,2399.4,2399.3,4.16771047]
[1750461759684,0.38804391,2399.4,2399.3,5.00128508]
[1750461759902,10.0,2399.7,2399.6,4.16736122]
[1750461760086,2.6349,2399.9,2399.6,4.16736122]
[1750461760087,0.0604,2399.8,2399.7,4.16718756]
[1750461760289,0.8368396,2399.8,2399.7,4.16718756]
[1750461760888,0.8573,2400.2,2400.1,4.16649306]
[1750461761179,0.0604,2399.8,2399.6,4.16722129]
[1750461761496,0.83705763,2399.7,2399.6,4.16722129]
[1750461761813,0.8573,2399.9,2399.8,4.16701391]
[1750461762027,1.63397096,2399.9,2399.8,4.16701391]
[1750461762940,1.6330691,2399.9,2399.8,4.16701391]
[1750461763138,2.40158235,2399.9,2399.8,4.16701391]
[1750461763839,2.40148779,2399.9,2399.8,4.16701391]
[1750461764128,2.40147329,2399.9,2399.8,4.16701391]
[1750461764330,2.01358872,2399.9,2399.8,4.16701391]
[1750461764509,2.4010789,2399.9,2399.8,4.16701391]
[1750461764899,2.01330343,2399.9,2399.8,4.16701391]
[1750461765436,0.8573,2400.3,2400.2,4.16631947]
[1750461765618,11.24477861,2400.3,2400.2,4.16631947]
[1750461765819,0.0604,2400.2,2400.0,4.16657333]
[1750461766040,1.63224176,2400.1,2400.0,4.16657333]
[1750461766426,0.38749511,2400.1,2400.0,4.99991446]
[1750461766741,0.7746,2400.5,2400.0,0.83334113]
[1750461767056,0.7746,2400.5,2399.4,7.66840487]
[1750461767057,0.7746,2400.2,2400.1,4.16634462]
[1750461767421,0.835,2400.2,2400.1,4.16634462]
[1750461767627,1.22218448,2400.2,2400.1,4.16634462]
[1750461768033,1.6614243,2400.2,2400.1,4.16634462]
[1750461768235,0.88708135,2400.2,2400.1,4.16634462]
[1750461768640,1.66081509,2400.2,2400.1,4.16634462]
[1750461768827,8.58385637,2400.2,2400.1,4.16634462]
[1750461769029,7.758,2400.2,2400.1,4.16634462]
[1750461770839,0.0604,2400.1,2399.9,4.16674615]
[1750461771041,0.0604,2400.0,2399.9,4.16674615]
[1750461771243,0.44709928,2400.0,2399.9,4.16674615]
[1750461771411,0.44709861,2400.0,2399.9,4.16674615]
[1750461772311,0.0604,2399.9,2399.8,4.16701202]
[1750461772517,12.77082218,2399.9,2399.8,4.16701202]
[1750461772725,12.71873447,2399.9,2399.8,4.16701202]
[1750461774448,19.64173447,2399.9,2399.8,4.16701202]
[1750461774640,17.7863,2399.9,2399.8,4.16701202]
[1750461778761,16.923,2399.9,2399.8,4.16701202]
[1750461781634,16.9834,2399.9,2399.8,4.16701202]
[1750461782264,17.75872903,2399.9,2399.8,4.16701202]
[1750461782469,17.75875841,2399.9,2399.8,4.16701202]
[1750461783677,17.69835841,2399.9,2399.8,4.16701202]
[1750461783973,17.69840993,2399.9,2399.8,4.16701202]
[1750461784160,17.75890993,2399.9,2399.8,4.16701202]
[1750461784357,17.37122722,2399.9,2399.8,4.16701202]
[1750461784535,17.7596489,2399.9,2399.8,4.16701202]
[1750461784970,17.76090788,2399.9,2399.8,4.16701202]
[1750461785274,17.76146111,2399.9,2399.8,4.16701202]
[1750461786045,17.76147367,2399.9,2399.8,4.16701202]
[1750461786644,17.76170555,2399.9,2399.8,4.16701202]
[1750461786845,17.76194965,2399.9,2399.8,4.16701202]
[1750461787077,17.37272487,2399.9,2399.8,4.16701202]
[1750461787273,17.76194766,2399.9,2399.8,4.16701202]
[1750461788188,17.76197228,2399.9,2399.8,4.16701202]
[1750461788393,17.99559276,2399.9,2399.8,4.16701202]
[1750461788678,17.76197228,2399.9,2399.8,4.16701202]
[1750461788912,17.76210518,2399.9,2399.8,4.16701202]
[1750461789089,17.76221016,2399.9,2399.8,4.16701202]
[1750461789295,17.99581127,2399.9,2399.8,4.16701202]
[1750461789461,17.99590916,2399.9,2399.8,4.16701202]
[1750461790701,17.60653373,2399.9,2399.8,4.16701202]